[Event "Late-Titled-Tuesday-Blitz-February-06-2024"]
[Site "Chess.com"]
[Date "2024.02.06"]
[Round "1"]
[White "Baronessa08"]
[Black "SantoBlue"]
[Result "1-0"]
[WhiteElo "2525"]
[BlackElo "2957"]
[TimeControl "180+1"]
[EndTime "14:05:39 PST"]
[Termination "Baronessa08 won by resignation"]

1. Nf3 {[%clk 0:03:00.9]} 1... d5 {[%clk 0:02:52.9]} 2. d4 {[%clk 0:02:59.6]}
2... Nf6 {[%clk 0:02:52.7]} 3. c4 {[%clk 0:02:57.8]} 3... c6 {[%clk 0:02:53.4]}
4. e3 {[%clk 0:02:57.2]} 4... Bg4 {[%clk 0:02:51.8]} 5. Nc3 {[%clk 0:02:56.5]}
5... e6 {[%clk 0:02:48.1]} 6. h3 {[%clk 0:02:56.3]} 6... Bh5 {[%clk 0:02:47.6]}
7. g4 {[%clk 0:02:56.1]} 7... Bg6 {[%clk 0:02:48.3]} 8. Ne5 {[%clk 0:02:56.3]}
8... Nbd7 {[%clk 0:02:47.8]} 9. Nxg6 {[%clk 0:02:55.9]} 9... hxg6 {[%clk
0:02:47.6]} 10. cxd5 {[%clk 0:02:48.8]} 10... cxd5 {[%clk 0:02:35.5]} 11. Bg2
{[%clk 0:02:45.2]} 11... Bd6 {[%clk 0:02:31.3]} 12. O-O {[%clk 0:02:38.6]} 12...
a6 {[%clk 0:02:31]} 13. Bd2 {[%clk 0:02:38.2]} 13... O-O {[%clk 0:02:29.5]} 14.
Rc1 {[%clk 0:02:36.6]} 14... Nb6 {[%clk 0:02:29.8]} 15. b3 {[%clk 0:02:30.9]}
15... Qe7 {[%clk 0:02:27]} 16. Qe2 {[%clk 0:02:20.3]} 16... Rac8 {[%clk
0:02:25.7]} 17. Nb1 {[%clk 0:02:06.6]} 17... Ne4 {[%clk 0:02:22.3]} 18. Ba5
{[%clk 0:02:06]} 18... Nd7 {[%clk 0:02:20.3]} 19. Nd2 {[%clk 0:01:58.8]} 19...
f5 {[%clk 0:02:18.9]} 20. Nxe4 {[%clk 0:01:56.5]} 20... fxe4 {[%clk 0:02:17.1]}
21. Rxc8 {[%clk 0:01:45.8]} 21... Rxc8 {[%clk 0:02:18]} 22. f3 {[%clk
0:01:45.7]} 22... exf3 {[%clk 0:02:14.8]} 23. Bxf3 {[%clk 0:01:45]} 23... g5
{[%clk 0:02:05.9]} 24. Qd3 {[%clk 0:01:39.5]} 24... Nf6 {[%clk 0:02:06.1]} 25.
Bd2 {[%clk 0:01:27.6]} 25... e5 {[%clk 0:02:04.8]} 26. Qf5 {[%clk 0:01:09.2]}
26... e4 {[%clk 0:02:03.4]} 27. Qxc8+ {[%clk 0:01:08.4]} 27... Kh7 {[%clk
0:02:03.1]} 28. Bg2 {[%clk 0:01:04.1]} 28... Bc7 {[%clk 0:02:03.6]} 29. Qf5+
{[%clk 0:01:00.5]} 29... Kg8 {[%clk 0:02:03.5]} 30. Qxg5 {[%clk 0:00:58.8]}
30... Qd6 {[%clk 0:02:04.2]} 31. Rf4 {[%clk 0:00:58.3]} 31... Qc6 {[%clk
0:02:03.9]} 32. Rf5 {[%clk 0:00:52.1]} 32... Qd6 {[%clk 0:02:03.3]} 33. Be1
{[%clk 0:00:48.1]} 33... Bd8 {[%clk 0:02:02.6]} 34. Qg6 {[%clk 0:00:46.4]} 34...
Qa3 {[%clk 0:01:59.9]} 35. Bg3 {[%clk 0:00:41.8]} 35... Qc1+ {[%clk 0:01:52.2]}
36. Kh2 {[%clk 0:00:41.9]} 36... Be7 {[%clk 0:01:48.3]} 37. Be5 {[%clk
0:00:38.9]} 37... Qc6 {[%clk 0:01:47.2]} 38. Bxf6 {[%clk 0:00:24.4]} 38... Bxf6
{[%clk 0:01:48.1]} 39. Rxf6 {[%clk 0:00:19.7]} 39... Qxf6 {[%clk 0:01:47.7]} 40.
Qxf6 {[%clk 0:00:19.9]} 40... gxf6 {[%clk 0:01:48.6]} 41. Kg3 {[%clk 0:00:20.2]}
1-0

[Event "Late-Titled-Tuesday-Blitz-February-06-2024"]
[Site "Chess.com"]
[Date "2024.02.06"]
[Round "1"]
[White "TheKingDoctor"]
[Black "DavidGavrilescu18"]
[Result "0-1"]
[WhiteElo "2409"]
[BlackElo "2766"]
[TimeControl "180+1"]
[EndTime "14:05:44 PST"]
[Termination "DavidGavrilescu18 won by resignation"]

1. e4 {[%clk 0:03:00.9]} 1... c5 {[%clk 0:02:58.6]} 2. c3 {[%clk 0:03:00.5]}
2... Nf6 {[%clk 0:02:57.8]} 3. e5 {[%clk 0:02:59.8]} 3... Nd5 {[%clk 0:02:58.2]}
4. d4 {[%clk 0:03:00.6]} 4... cxd4 {[%clk 0:02:55.7]} 5. cxd4 {[%clk 0:03:01.5]}
5... e6 {[%clk 0:02:55.8]} 6. Nf3 {[%clk 0:03:02.4]} 6... d6 {[%clk 0:02:56.1]}
7. a3 {[%clk 0:03:02]} 7... Be7 {[%clk 0:02:56.3]} 8. Bd3 {[%clk 0:03:02.6]}
8... O-O {[%clk 0:02:56.1]} 9. O-O {[%clk 0:03:01.2]} 9... dxe5 {[%clk
0:02:54.1]} 10. dxe5 {[%clk 0:03:00.5]} 10... b6 {[%clk 0:02:52.6]} 11. Qe2
{[%clk 0:02:59.2]} 11... Bb7 {[%clk 0:02:52.5]} 12. Bd2 {[%clk 0:02:58.7]} 12...
Nd7 {[%clk 0:02:51.7]} 13. Rc1 {[%clk 0:02:56.2]} 13... Nc5 {[%clk 0:02:51.7]}
14. Bc2 {[%clk 0:02:50.3]} 14... Ba6 {[%clk 0:02:51.3]} 15. Qd1 {[%clk
0:02:39.7]} 15... Rc8 {[%clk 0:02:44.8]} 16. Nc3 {[%clk 0:02:34.4]} 16... Nd3
{[%clk 0:02:45]} 17. Bxd3 {[%clk 0:02:30.2]} 17... Bxd3 {[%clk 0:02:45.9]} 18.
Bg5 {[%clk 0:02:15.3]} 18... Bxg5 {[%clk 0:02:28.5]} 19. Nxg5 {[%clk 0:02:13.2]}
19... Nxc3 {[%clk 0:02:26]} 20. Rxc3 {[%clk 0:02:06.3]} 20... Rxc3 {[%clk
0:02:25.7]} 21. bxc3 {[%clk 0:02:01.5]} 21... Qxg5 {[%clk 0:02:25.5]} 22. Qxd3
{[%clk 0:02:01.7]} 22... Qxe5 {[%clk 0:02:26.2]} 23. g3 {[%clk 0:02:00.4]} 23...
g6 {[%clk 0:02:26.6]} 24. Rd1 {[%clk 0:01:49]} 24... Rc8 {[%clk 0:02:25.5]} 25.
c4 {[%clk 0:01:48.4]} 25... h5 {[%clk 0:02:21.4]} 26. h4 {[%clk 0:01:45.1]}
26... Qc5 {[%clk 0:02:18.8]} 27. Qf3 {[%clk 0:01:39]} 27... Qe7 {[%clk
0:02:05.3]} 28. Rd4 {[%clk 0:01:34.9]} 28... e5 {[%clk 0:02:03.2]} 29. Rd1
{[%clk 0:01:30.6]} 29... Rxc4 {[%clk 0:01:50.3]} 30. Qa8+ {[%clk 0:01:29.8]}
30... Kh7 {[%clk 0:01:50.4]} 31. Rd8 {[%clk 0:01:30]} 31... Qf6 {[%clk
0:01:50.7]} 32. Rd7 {[%clk 0:01:21.7]} 32... Rc2 {[%clk 0:01:48]} 33. Qg2 {[%clk
0:01:02.8]} 33... e4 {[%clk 0:01:43.7]} 34. g4 {[%clk 0:00:48]} 34... e3 {[%clk
0:01:36.4]} 35. gxh5 {[%clk 0:00:28.5]} 35... Rc1+ {[%clk 0:01:35.2]} 36. Kh2
{[%clk 0:00:27.3]} 36... Qxh4+ {[%clk 0:01:35.4]} 37. Qh3 {[%clk 0:00:26.4]}
37... Rh1+ {[%clk 0:01:36.3]} 38. Kxh1 {[%clk 0:00:26.3]} 38... Qxh3+ {[%clk
0:01:37.2]} 39. Kg1 {[%clk 0:00:26]} 39... exf2+ {[%clk 0:01:36.6]} 40. Kxf2
{[%clk 0:00:25.6]} 40... Qxd7 {[%clk 0:01:37.5]} 41. hxg6+ {[%clk 0:00:25.5]}
41... Kxg6 {[%clk 0:01:38.4]} 0-1

[Event "Late-Titled-Tuesday-Blitz-February-06-2024"]
[Site "Chess.com"]
[Date "2024.02.06"]
[Round "1"]
[White "HajiyevKanan"]
[Black "LUISMIGUELOV"]
[Result "1-0"]
[WhiteElo "2604"]
[BlackElo "2222"]
[TimeControl "180+1"]
[EndTime "14:05:48 PST"]
[Termination "HajiyevKanan won by checkmate"]

1. d4 {[%clk 0:02:59.9]} 1... d5 {[%clk 0:02:56.5]} 2. Nf3 {[%clk 0:03:00.8]}
2... Nf6 {[%clk 0:02:55.1]} 3. c4 {[%clk 0:03:01.7]} 3... c6 {[%clk 0:02:54.9]}
4. cxd5 {[%clk 0:03:02.6]} 4... cxd5 {[%clk 0:02:51.2]} 5. Nc3 {[%clk
0:03:03.5]} 5... Nc6 {[%clk 0:02:50.4]} 6. Bg5 {[%clk 0:03:04.3]} 6... Ne4
{[%clk 0:02:48.3]} 7. Bf4 {[%clk 0:03:04.6]} 7... f5 {[%clk 0:02:43.8]} 8. Qb3
{[%clk 0:03:03.2]} 8... e6 {[%clk 0:02:42.7]} 9. e3 {[%clk 0:03:03]} 9... Bd6
{[%clk 0:02:39.7]} 10. Bxd6 {[%clk 0:03:02]} 10... Qxd6 {[%clk 0:02:39]} 11. Bd3
{[%clk 0:03:02.4]} 11... O-O {[%clk 0:02:37.9]} 12. O-O {[%clk 0:03:02]} 12...
b6 {[%clk 0:02:30.1]} 13. Rac1 {[%clk 0:02:59]} 13... Bd7 {[%clk 0:02:28.9]} 14.
a3 {[%clk 0:02:51.7]} 14... Na5 {[%clk 0:02:27.1]} 15. Qb4 {[%clk 0:02:51.2]}
15... Qxb4 {[%clk 0:02:25.4]} 16. axb4 {[%clk 0:02:52.1]} 16... Nc6 {[%clk
0:02:24.9]} 17. Bb5 {[%clk 0:02:48.3]} 17... Nb8 {[%clk 0:02:14]} 18. Bd3 {[%clk
0:02:21.3]} 18... Rd8 {[%clk 0:02:07.6]} 19. Ne5 {[%clk 0:02:21]} 19... Be8
{[%clk 0:02:02.1]} 20. Bxe4 {[%clk 0:02:14.4]} 20... fxe4 {[%clk 0:02:00.9]} 21.
b5 {[%clk 0:02:11.6]} 21... a6 {[%clk 0:01:46.7]} 22. Ra1 {[%clk 0:02:03.4]}
22... a5 {[%clk 0:01:34]} 23. b4 {[%clk 0:02:01.1]} 23... Nd7 {[%clk 0:01:31.5]}
24. Nc6 {[%clk 0:02:00.6]} 24... axb4 {[%clk 0:01:23.2]} 25. Nxd8 {[%clk
0:02:00.6]} 25... Rxa1 {[%clk 0:01:12.8]} 26. Rxa1 {[%clk 0:01:59.3]} 26... bxc3
{[%clk 0:01:13]} 27. Nxe6 {[%clk 0:01:50.6]} 27... Kf7 {[%clk 0:01:11.8]} 28.
Nc7 {[%clk 0:01:49]} 28... Nf6 {[%clk 0:01:04.5]} 29. Rc1 {[%clk 0:01:40.7]}
29... Bd7 {[%clk 0:01:03]} 30. Rxc3 {[%clk 0:01:40.2]} 30... Ne8 {[%clk
0:00:59.3]} 31. Nxd5 {[%clk 0:01:32]} 31... Bxb5 {[%clk 0:00:57.8]} 32. Nxb6
{[%clk 0:01:30.3]} 32... Bd3 {[%clk 0:00:56]} 33. Nd5 {[%clk 0:01:25.9]} 33...
Nd6 {[%clk 0:00:50]} 34. Rc7+ {[%clk 0:01:24.7]} 34... Kg6 {[%clk 0:00:42.7]}
35. Nf4+ {[%clk 0:01:23.3]} 35... Kf5 {[%clk 0:00:41.9]} 36. Rxg7 {[%clk
0:01:20.3]} 36... h6 {[%clk 0:00:37.6]} 37. Rg6 {[%clk 0:01:13.8]} 37... Nf7
{[%clk 0:00:35.5]} 38. g4# {[%clk 0:01:13.4]} 1-0

[Event "Late-Titled-Tuesday-Blitz-February-06-2024"]
[Site "Chess.com"]
[Date "2024.02.06"]
[Round "1"]
[White "Romadk"]
[Black "JRenatoMaranhao"]
[Result "1-0"]
[WhiteElo "2550"]
[BlackElo "2020"]
[TimeControl "180+1"]
[EndTime "14:05:48 PST"]
[Termination "Romadk won on time"]

1. d4 {[%clk 0:03:00]} 1... d5 {[%clk 0:02:59.7]} 2. Nf3 {[%clk 0:03:00.1]} 2...
Nf6 {[%clk 0:03:00]} 3. g3 {[%clk 0:03:00.7]} 3... c6 {[%clk 0:03:00.4]} 4. Bg2
{[%clk 0:03:01.5]} 4... Nbd7 {[%clk 0:02:57.9]} 5. c4 {[%clk 0:03:00.9]} 5... g6
{[%clk 0:02:57.9]} 6. Nc3 {[%clk 0:03:00.1]} 6... Bg7 {[%clk 0:02:57.9]} 7. cxd5
{[%clk 0:03:00]} 7... cxd5 {[%clk 0:02:58.7]} 8. O-O {[%clk 0:02:59.9]} 8... O-O
{[%clk 0:02:59.2]} 9. Qb3 {[%clk 0:03:00.6]} 9... b6 {[%clk 0:02:44.9]} 10. Nxd5
{[%clk 0:02:50.5]} 10... Nxd5 {[%clk 0:02:31.4]} 11. Qxd5 {[%clk 0:02:51.4]}
11... Ba6 {[%clk 0:02:29.8]} 12. Re1 {[%clk 0:02:47.3]} 12... Rc8 {[%clk
0:02:28.3]} 13. Bh3 {[%clk 0:02:32.8]} 13... Rc7 {[%clk 0:02:20.7]} 14. Bf4
{[%clk 0:02:25.4]} 14... e5 {[%clk 0:02:10.2]} 15. Nxe5 {[%clk 0:02:09.1]} 15...
Bb7 {[%clk 0:01:43.5]} 16. Qd6 {[%clk 0:01:55.4]} 16... f5 {[%clk 0:01:01.4]}
17. Nxg6 {[%clk 0:01:46.6]} 17... hxg6 {[%clk 0:00:52.3]} 18. Qxc7 {[%clk
0:01:46.4]} 18... Qxc7 {[%clk 0:00:51.9]} 19. Bxc7 {[%clk 0:01:47.3]} 19... Bxd4
{[%clk 0:00:51.3]} 20. Rad1 {[%clk 0:01:42]} 20... Rc8 {[%clk 0:00:43.4]} 21.
Bf4 {[%clk 0:01:37.6]} 21... Rc4 {[%clk 0:00:17.9]} 22. b3 {[%clk 0:01:34.1]}
22... Rb4 {[%clk 0:00:12.1]} 23. e3 {[%clk 0:01:29.7]} 23... Bc3 {[%clk
0:00:08.7]} 24. Rxd7 {[%clk 0:01:29.4]} 24... Bxe1 {[%clk 0:00:08.1]} 25. Rxb7
{[%clk 0:01:29.5]} 25... a5 {[%clk 0:00:06.5]} 26. Bc7 {[%clk 0:01:25]} 26... a4
{[%clk 0:00:05.8]} 27. Rxb6 {[%clk 0:01:24.9]} 27... axb3 {[%clk 0:00:02.7]} 28.
axb3 {[%clk 0:01:25.5]} 1-0

[Event "Late-Titled-Tuesday-Blitz-February-06-2024"]
[Site "Chess.com"]
[Date "2024.02.06"]
[Round "1"]
[White "chrisclaireredfield"]
[Black "Einherjar521"]
[Result "1-0"]
[WhiteElo "2564"]
[BlackElo "2091"]
[TimeControl "180+1"]
[EndTime "14:05:51 PST"]
[Termination "chrisclaireredfield won by resignation"]

1. Nf3 {[%clk 0:03:00.9]} 1... Nf6 {[%clk 0:02:59.6]} 2. g3 {[%clk 0:02:59.7]}
2... g6 {[%clk 0:02:59.3]} 3. Bg2 {[%clk 0:02:59.9]} 3... Bg7 {[%clk 0:02:59.3]}
4. O-O {[%clk 0:03:00.1]} 4... O-O {[%clk 0:02:59]} 5. d4 {[%clk 0:02:59.7]}
5... d6 {[%clk 0:02:59.1]} 6. b3 {[%clk 0:02:59.8]} 6... c5 {[%clk 0:02:55.6]}
7. Bb2 {[%clk 0:02:55.9]} 7... Nc6 {[%clk 0:02:55]} 8. d5 {[%clk 0:02:52.6]}
8... Na5 {[%clk 0:02:52.9]} 9. c4 {[%clk 0:02:50.9]} 9... a6 {[%clk 0:02:50.2]}
10. a4 {[%clk 0:02:42.7]} 10... Rb8 {[%clk 0:02:47.5]} 11. Bc3 {[%clk
0:02:38.1]} 11... b6 {[%clk 0:02:45.2]} 12. Nbd2 {[%clk 0:02:34.6]} 12... Bd7
{[%clk 0:02:30.4]} 13. Qc2 {[%clk 0:02:28.4]} 13... Nh5 {[%clk 0:02:20.7]} 14.
Bxg7 {[%clk 0:02:26.8]} 14... Nxg7 {[%clk 0:02:20.1]} 15. Qc3 {[%clk 0:02:26]}
15... Qc7 {[%clk 0:02:16.9]} 16. e4 {[%clk 0:02:24.9]} 16... f6 {[%clk
0:02:15.6]} 17. Ne1 {[%clk 0:02:21.8]} 17... Ra8 {[%clk 0:02:13]} 18. Nd3 {[%clk
0:02:09.5]} 18... b5 {[%clk 0:02:12.5]} 19. f4 {[%clk 0:02:01.3]} 19... bxc4
{[%clk 0:02:08.2]} 20. bxc4 {[%clk 0:02:01]} 20... Rab8 {[%clk 0:02:06.9]} 21.
e5 {[%clk 0:01:53.8]} 21... Nf5 {[%clk 0:01:45.8]} 22. e6 {[%clk 0:01:33.4]}
22... Nd4 {[%clk 0:01:34]} 23. Kf2 {[%clk 0:01:21]} 23... Bc8 {[%clk 0:01:17.1]}
24. Rfb1 {[%clk 0:01:19.6]} 24... Bb7 {[%clk 0:01:11.5]} 25. Nf3 {[%clk
0:01:16.6]} 25... Ba8 {[%clk 0:01:11.2]} 26. Nxd4 {[%clk 0:00:52.7]} 26... cxd4
{[%clk 0:01:11.1]} 27. Qxd4 {[%clk 0:00:53.1]} 27... Qxc4 {[%clk 0:01:06.3]} 28.
Qxc4 {[%clk 0:00:46.9]} 28... Nxc4 {[%clk 0:01:05.1]} 29. Rxb8 {[%clk
0:00:46.9]} 29... Rxb8 {[%clk 0:01:04.7]} 30. Rc1 {[%clk 0:00:43.5]} 30... Nb6
{[%clk 0:00:55.4]} 31. Rb1 {[%clk 0:00:42.8]} 31... Nd7 {[%clk 0:00:50.9]} 32.
exd7 {[%clk 0:00:41.2]} 1-0

[Event "Late-Titled-Tuesday-Blitz-February-06-2024"]
[Site "Chess.com"]
[Date "2024.02.06"]
[Round "1"]
[White "SimplyDevina"]
[Black "KantorGergely"]
[Result "0-1"]
[WhiteElo "2406"]
[BlackElo "2764"]
[TimeControl "180+1"]
[EndTime "14:05:56 PST"]
[Termination "KantorGergely won by resignation"]

1. d4 {[%clk 0:03:00.9]} 1... d5 {[%clk 0:02:58.1]} 2. c4 {[%clk 0:03:00.5]}
2... c6 {[%clk 0:02:57.8]} 3. Nc3 {[%clk 0:03:00.4]} 3... e6 {[%clk 0:02:57.8]}
4. cxd5 {[%clk 0:03:00.2]} 4... exd5 {[%clk 0:02:57.9]} 5. Bf4 {[%clk
0:03:00.7]} 5... Bf5 {[%clk 0:02:57.6]} 6. e3 {[%clk 0:03:01.2]} 6... Nf6 {[%clk
0:02:55.1]} 7. Bd3 {[%clk 0:03:01.4]} 7... Bxd3 {[%clk 0:02:55]} 8. Qxd3 {[%clk
0:03:02.3]} 8... Bd6 {[%clk 0:02:55]} 9. Bxd6 {[%clk 0:03:02.5]} 9... Qxd6
{[%clk 0:02:55.2]} 10. Nf3 {[%clk 0:02:59.9]} 10... Nbd7 {[%clk 0:02:55.5]} 11.
Rc1 {[%clk 0:02:54.6]} 11... O-O {[%clk 0:02:55.4]} 12. O-O {[%clk 0:02:54.1]}
12... Rae8 {[%clk 0:02:55.4]} 13. a3 {[%clk 0:02:51.7]} 13... a5 {[%clk
0:02:51.8]} 14. Na4 {[%clk 0:02:44.1]} 14... Ne4 {[%clk 0:02:51.2]} 15. Rc2
{[%clk 0:02:26.2]} 15... f5 {[%clk 0:02:46.6]} 16. Rfc1 {[%clk 0:02:22.4]} 16...
f4 {[%clk 0:02:43.4]} 17. exf4 {[%clk 0:02:11]} 17... Rxf4 {[%clk 0:02:43.5]}
18. Nc5 {[%clk 0:02:09.4]} 18... Ndxc5 {[%clk 0:02:37.6]} 19. dxc5 {[%clk
0:02:08.8]} 19... Qg6 {[%clk 0:02:32.8]} 20. Qe3 {[%clk 0:01:50.6]} 20... Ref8
{[%clk 0:02:30.4]} 21. Ne5 {[%clk 0:01:41.4]} 21... Qh5 {[%clk 0:02:23.1]} 22.
Nd3 {[%clk 0:01:30.1]} 22... Rh4 {[%clk 0:02:20.8]} 23. h3 {[%clk 0:01:24]}
23... Ng5 {[%clk 0:02:20.6]} 24. f4 {[%clk 0:01:17]} 24... Nxh3+ {[%clk
0:02:13.1]} 25. gxh3 {[%clk 0:01:15.7]} 25... Rxh3 {[%clk 0:02:13.5]} 26. Qe6+
{[%clk 0:01:15.9]} 26... Kh8 {[%clk 0:02:11.5]} 27. Nf2 {[%clk 0:01:16.1]} 27...
Rg3+ {[%clk 0:01:47.5]} 28. Kf1 {[%clk 0:01:14.6]} 28... Qf3 {[%clk 0:01:47.8]}
29. Rc3 {[%clk 0:00:59.7]} 29... Qxf4 {[%clk 0:01:46.5]} 30. R1c2 {[%clk
0:00:52.7]} 30... Rg6 {[%clk 0:01:17.2]} 31. Qh3 {[%clk 0:00:47.9]} 31... Rh6
{[%clk 0:01:09.6]} 32. Qg3 {[%clk 0:00:42.8]} 32... Qe4 {[%clk 0:01:07.9]} 33.
Qg2 {[%clk 0:00:32.1]} 33... Rh1+ {[%clk 0:01:04.2]} 34. Qxh1 {[%clk 0:00:30.1]}
34... Qxh1+ {[%clk 0:01:04.2]} 35. Ke2 {[%clk 0:00:30.9]} 35... Qg2 {[%clk
0:01:00.8]} 36. Ke1 {[%clk 0:00:30.9]} 36... Qg1+ {[%clk 0:01:00.2]} 0-1

[Event "Late-Titled-Tuesday-Blitz-February-06-2024"]
[Site "Chess.com"]
[Date "2024.02.06"]
[Round "1"]
[White "WindWhistler11"]
[Black "Fandorine"]
[Result "0-1"]
[WhiteElo "2508"]
[BlackElo "2961"]
[TimeControl "180+1"]
[EndTime "14:05:59 PST"]
[Termination "Fandorine won by resignation"]

1. Nf3 {[%clk 0:03:00.6]} 1... Nf6 {[%clk 0:02:58.3]} 2. g3 {[%clk 0:03:00.4]}
2... d5 {[%clk 0:02:57.5]} 3. c4 {[%clk 0:03:00.4]} 3... e6 {[%clk 0:02:56.9]}
4. Bg2 {[%clk 0:03:00.1]} 4... Be7 {[%clk 0:02:57.5]} 5. b3 {[%clk 0:03:00.5]}
5... d4 {[%clk 0:02:53]} 6. e3 {[%clk 0:02:52.8]} 6... c5 {[%clk 0:02:53.2]} 7.
exd4 {[%clk 0:02:47.3]} 7... cxd4 {[%clk 0:02:53.4]} 8. d3 {[%clk 0:02:47.2]}
8... O-O {[%clk 0:02:51.7]} 9. O-O {[%clk 0:02:47.3]} 9... Nc6 {[%clk
0:02:49.8]} 10. Re1 {[%clk 0:02:39.3]} 10... a5 {[%clk 0:02:48.7]} 11. Na3
{[%clk 0:02:32.2]} 11... a4 {[%clk 0:02:42.5]} 12. bxa4 {[%clk 0:02:28.1]} 12...
Nd7 {[%clk 0:02:41.4]} 13. Nb5 {[%clk 0:02:27.4]} 13... Nc5 {[%clk 0:02:39.7]}
14. Ba3 {[%clk 0:02:19.2]} 14... f6 {[%clk 0:02:27.1]} 15. Bxc5 {[%clk
0:02:06.7]} 15... Bxc5 {[%clk 0:02:27.4]} 16. Nd2 {[%clk 0:02:04.3]} 16... e5
{[%clk 0:02:25.2]} 17. Nb3 {[%clk 0:02:01.3]} 17... Bb4 {[%clk 0:02:24.7]} 18.
Re2 {[%clk 0:01:56.1]} 18... Be6 {[%clk 0:02:24.3]} 19. a3 {[%clk 0:01:48.6]}
19... Be7 {[%clk 0:02:21.7]} 20. Nd2 {[%clk 0:01:46.7]} 20... Kh8 {[%clk
0:02:19.4]} 21. Qb3 {[%clk 0:01:44.1]} 21... f5 {[%clk 0:02:04.3]} 22. Bxc6
{[%clk 0:01:38.1]} 22... bxc6 {[%clk 0:02:02.8]} 23. Rxe5 {[%clk 0:01:38.3]}
23... Bg8 {[%clk 0:01:59.3]} 24. Rae1 {[%clk 0:01:28.9]} 24... Bf6 {[%clk
0:01:44.8]} 25. Rxf5 {[%clk 0:01:27.4]} 25... cxb5 {[%clk 0:01:43.4]} 26. Rxb5
{[%clk 0:01:23.6]} 26... Bf7 {[%clk 0:01:37.8]} 27. Ne4 {[%clk 0:01:20.6]} 27...
h6 {[%clk 0:01:31.1]} 28. Nc5 {[%clk 0:01:13.8]} 28... Qc8 {[%clk 0:01:24.7]}
29. Nb7 {[%clk 0:01:10.7]} 29... Qc6 {[%clk 0:01:09.3]} 30. Rb6 {[%clk
0:00:47.5]} 30... Qf3 {[%clk 0:01:09.1]} 31. Nd6 {[%clk 0:00:46.6]} 31... Bg6
{[%clk 0:01:06.6]} 32. Ne4 {[%clk 0:00:44.4]} 32... Bxe4 {[%clk 0:01:00.8]} 33.
Rxe4 {[%clk 0:00:45.3]} 33... Bd8 {[%clk 0:01:00.5]} 0-1

[Event "Late-Titled-Tuesday-Blitz-February-06-2024"]
[Site "Chess.com"]
[Date "2024.02.06"]
[Round "1"]
[White "DanielNaroditsky"]
[Black "Truequitos"]
[Result "1-0"]
[WhiteElo "3204"]
[BlackElo "2532"]
[TimeControl "180+1"]
[EndTime "14:06:00 PST"]
[Termination "DanielNaroditsky won by resignation"]

1. e4 {[%clk 0:03:00.9]} 1... e6 {[%clk 0:02:59.3]} 2. d4 {[%clk 0:02:57.3]}
2... d5 {[%clk 0:02:59.8]} 3. Nd2 {[%clk 0:02:58]} 3... c5 {[%clk 0:02:59]} 4.
Ngf3 {[%clk 0:02:57.9]} 4... cxd4 {[%clk 0:02:58.7]} 5. Nxd4 {[%clk 0:02:58.8]}
5... Nf6 {[%clk 0:02:58.7]} 6. exd5 {[%clk 0:02:59]} 6... Nxd5 {[%clk
0:02:58.2]} 7. N2f3 {[%clk 0:02:56.7]} 7... Bc5 {[%clk 0:02:58.1]} 8. Bc4 {[%clk
0:02:43.3]} 8... O-O {[%clk 0:02:56.6]} 9. O-O {[%clk 0:02:43.3]} 9... a6 {[%clk
0:02:53.9]} 10. Bg5 {[%clk 0:02:37.9]} 10... Be7 {[%clk 0:02:39.6]} 11. Bxe7
{[%clk 0:02:32.5]} 11... Nxe7 {[%clk 0:02:40.5]} 12. Qe2 {[%clk 0:02:30.5]}
12... Nbc6 {[%clk 0:02:22.5]} 13. Rad1 {[%clk 0:02:30.4]} 13... Qc7 {[%clk
0:02:21.2]} 14. c3 {[%clk 0:02:20.7]} 14... b5 {[%clk 0:02:12.3]} 15. Nxc6
{[%clk 0:02:14.8]} 15... Qxc6 {[%clk 0:01:59.7]} 16. Bd3 {[%clk 0:02:12.6]}
16... Bb7 {[%clk 0:01:57.7]} 17. Rfe1 {[%clk 0:02:10.7]} 17... Rad8 {[%clk
0:01:50.5]} 18. Bc2 {[%clk 0:02:09.5]} 18... g6 {[%clk 0:01:45.4]} 19. h4 {[%clk
0:02:03.5]} 19... Nd5 {[%clk 0:01:41.3]} 20. Qe5 {[%clk 0:01:53.3]} 20... Nb6
{[%clk 0:01:27.7]} 21. h5 {[%clk 0:01:07.5]} 21... Rd5 {[%clk 0:01:27.5]} 22.
Rxd5 {[%clk 0:01:00.3]} 22... Qxd5 {[%clk 0:01:28.4]} 23. hxg6 {[%clk
0:00:55.7]} 23... hxg6 {[%clk 0:01:29.3]} 24. Qg3 {[%clk 0:00:47.2]} 24... Nc4
{[%clk 0:01:20.4]} 25. Bxg6 {[%clk 0:00:37.4]} 25... fxg6 {[%clk 0:01:11.3]} 26.
Qxg6+ {[%clk 0:00:38.3]} 26... Kh8 {[%clk 0:01:11.7]} 27. Rxe6 {[%clk
0:00:34.2]} 27... Qxe6 {[%clk 0:00:43.9]} 28. Qxe6 {[%clk 0:00:32.9]} 28... Bxf3
{[%clk 0:00:44.7]} 29. gxf3 {[%clk 0:00:28]} 1-0